[Event "Late-Titled-Tuesday-Blitz-July-09-2024"]
[Site "Chess.com"]
[Date "2024.07.09"]
[Round "2"]
[White "ural58"]
[Black "Flawless_Fighter"]
[Result "1/2-1/2"]
[WhiteElo "2459"]
[BlackElo "2766"]
[TimeControl "180+1"]
[EndTime "14:19:05 PDT"]
[Termination "Game drawn - insufficient material"]

1. e4 {[%clk 0:02:59.5]} 1... c6 {[%clk 0:02:59.6]} 2. Nc3 {[%clk 0:02:58.4]}
2... g6 {[%clk 0:02:58.8]} 3. d4 {[%clk 0:02:57.6]} 3... Bg7 {[%clk 0:02:59.5]}
4. Nf3 {[%clk 0:02:57.5]} 4... d6 {[%clk 0:02:57.1]} 5. h3 {[%clk 0:02:55.9]}
5... Nf6 {[%clk 0:02:53.3]} 6. Be2 {[%clk 0:02:53.7]} 6... O-O {[%clk
0:02:53.4]} 7. Be3 {[%clk 0:02:53.3]} 7... d5 {[%clk 0:02:53.3]} 8. e5 {[%clk
0:02:45.5]} 8... Ne4 {[%clk 0:02:50.7]} 9. Nxe4 {[%clk 0:02:45]} 9... dxe4
{[%clk 0:02:51.6]} 10. Nd2 {[%clk 0:02:45.5]} 10... c5 {[%clk 0:02:48.3]} 11. c3
{[%clk 0:02:44.9]} 11... cxd4 {[%clk 0:02:46.5]} 12. cxd4 {[%clk 0:02:44.8]}
12... Bf5 {[%clk 0:02:33.9]} 13. g4 {[%clk 0:02:43.7]} 13... Be6 {[%clk
0:02:32.7]} 14. Nxe4 {[%clk 0:02:43.2]} 14... Nc6 {[%clk 0:02:32.1]} 15. O-O
{[%clk 0:02:35.2]} 15... Bd5 {[%clk 0:02:21]} 16. Nc3 {[%clk 0:02:33.7]} 16...
e6 {[%clk 0:02:11.2]} 17. Nxd5 {[%clk 0:02:32.9]} 17... Qxd5 {[%clk 0:02:11.9]}
18. Bf3 {[%clk 0:02:33]} 18... Qd7 {[%clk 0:02:11.2]} 19. Qd2 {[%clk 0:02:32.5]}
19... Rfd8 {[%clk 0:02:08.9]} 20. Rfd1 {[%clk 0:02:32.2]} 20... Rac8 {[%clk
0:02:03.8]} 21. Rac1 {[%clk 0:02:31.6]} 21... Ne7 {[%clk 0:02:00.7]} 22. Rxc8
{[%clk 0:02:28.2]} 22... Rxc8 {[%clk 0:02:00.6]} 23. Qa5 {[%clk 0:02:19.7]}
23... b6 {[%clk 0:01:54.8]} 24. Qa3 {[%clk 0:02:13.4]} 24... Bf8 {[%clk
0:01:42.3]} 25. Qb3 {[%clk 0:02:13]} 25... Nc6 {[%clk 0:01:18.1]} 26. Bxc6
{[%clk 0:02:12]} 26... Qxc6 {[%clk 0:01:14.1]} 27. d5 {[%clk 0:02:12.9]} 27...
exd5 {[%clk 0:01:10.5]} 28. Qxd5 {[%clk 0:02:12.4]} 28... Qxd5 {[%clk
0:01:03.4]} 29. Rxd5 {[%clk 0:02:11.8]} 29... Bc5 {[%clk 0:00:44.4]} 30. Bxc5
{[%clk 0:02:10]} 30... bxc5 {[%clk 0:00:45.3]} 31. f4 {[%clk 0:02:06.4]} 31...
c4 {[%clk 0:00:42.6]} 32. Rd2 {[%clk 0:01:54.1]} 32... Kg7 {[%clk 0:00:40.2]}
33. Kf2 {[%clk 0:01:52.1]} 33... c3 {[%clk 0:00:39.4]} 34. bxc3 {[%clk
0:01:51.8]} 34... Rxc3 {[%clk 0:00:40.3]} 35. h4 {[%clk 0:01:51.1]} 35... Rh3
{[%clk 0:00:37.7]} 36. f5 {[%clk 0:01:47.6]} 36... gxf5 {[%clk 0:00:33.8]} 37.
gxf5 {[%clk 0:01:47.4]} 37... Rxh4 {[%clk 0:00:34.3]} 38. Kg3 {[%clk 0:01:46.8]}
38... Ra4 {[%clk 0:00:24.4]} 39. Rd7 {[%clk 0:01:46.5]} 39... Kg8 {[%clk
0:00:20.5]} 40. f6 {[%clk 0:01:44.8]} 40... h6 {[%clk 0:00:12.7]} 41. Rd8+
{[%clk 0:01:44.2]} 41... Kh7 {[%clk 0:00:13]} 42. Rf8 {[%clk 0:01:43.8]} 42...
Kg6 {[%clk 0:00:10.5]} 43. Kf3 {[%clk 0:01:19.6]} 43... Rxa2 {[%clk 0:00:08.6]}
44. Ke4 {[%clk 0:01:17.8]} 44... Ra4+ {[%clk 0:00:08.1]} 45. Kd5 {[%clk
0:01:18]} 45... Ra5+ {[%clk 0:00:08.5]} 46. Kd6 {[%clk 0:01:18.1]} 46... h5
{[%clk 0:00:05.4]} 47. Rg8+ {[%clk 0:01:12.3]} 47... Kf5 {[%clk 0:00:05.9]} 48.
Rh8 {[%clk 0:01:07.8]} 48... Kg6 {[%clk 0:00:05.6]} 49. Rg8+ {[%clk 0:01:01.6]}
49... Kf5 {[%clk 0:00:06]} 50. Rg1 {[%clk 0:00:56.9]} 50... h4 {[%clk
0:00:05.8]} 51. Rf1+ {[%clk 0:00:56.7]} 51... Kg5 {[%clk 0:00:06.2]} 52. e6
{[%clk 0:00:56.1]} 52... Ra6+ {[%clk 0:00:05.8]} 53. Ke7 {[%clk 0:00:55.3]}
53... Rxe6+ {[%clk 0:00:06.7]} 54. Kxf7 {[%clk 0:00:55.4]} 54... Re3 {[%clk
0:00:03.2]} 55. Kg7 {[%clk 0:00:54.9]} 55... h3 {[%clk 0:00:01.8]} 56. f7 {[%clk
0:00:54.8]} 56... Re7 {[%clk 0:00:02.4]} 57. Rg1+ {[%clk 0:00:47.7]} 57... Kh4
{[%clk 0:00:02.1]} 58. Kf6 {[%clk 0:00:46.4]} 58... Rxf7+ {[%clk 0:00:02.2]} 59.
Kxf7 {[%clk 0:00:47.3]} 59... h2 {[%clk 0:00:03.1]} 60. Ra1 {[%clk 0:00:45.7]}
60... Kg3 {[%clk 0:00:02.6]} 61. Ke6 {[%clk 0:00:42.1]} 61... Kg2 {[%clk
0:00:03.1]} 62. Kd5 {[%clk 0:00:40.7]} 62... h1=Q {[%clk 0:00:03.5]} 63. Rxh1
{[%clk 0:00:40.3]} 63... Kxh1 {[%clk 0:00:04.4]} 64. Kc4 {[%clk 0:00:40.8]}
64... a5 {[%clk 0:00:04.9]} 65. Kb5 {[%clk 0:00:40.7]} 65... a4 {[%clk
0:00:05.8]} 66. Kxa4 {[%clk 0:00:40.3]} 1/2-1/2

[Event "Late-Titled-Tuesday-Blitz-July-09-2024"]
[Site "Chess.com"]
[Date "2024.07.09"]
[Round "2"]
[White "Cipy77"]
[Black "klercaku"]
[Result "0-1"]
[WhiteElo "2608"]
[BlackElo "2394"]
[TimeControl "180+1"]
[EndTime "14:19:08 PDT"]
[Termination "klercaku won on time"]

1. Nf3 {[%clk 0:03:00]} 1... d5 {[%clk 0:03:00]} 2. c4 {[%clk 0:03:00.2]} 2...
dxc4 {[%clk 0:02:59.5]} 3. Qa4+ {[%clk 0:02:58.8]} 3... Nd7 {[%clk 0:02:59.4]}
4. Qxc4 {[%clk 0:02:59.2]} 4... e6 {[%clk 0:02:59.8]} 5. g3 {[%clk 0:02:53.1]}
5... a6 {[%clk 0:02:59.9]} 6. Bg2 {[%clk 0:02:53.1]} 6... b5 {[%clk 0:03:00.2]}
7. Qc2 {[%clk 0:02:53.5]} 7... Bb7 {[%clk 0:03:00.5]} 8. O-O {[%clk 0:02:53.2]}
8... c5 {[%clk 0:03:01]} 9. a4 {[%clk 0:02:53.3]} 9... Ngf6 {[%clk 0:02:59.1]}
10. d3 {[%clk 0:02:53.1]} 10... Be7 {[%clk 0:02:58.4]} 11. Nc3 {[%clk
0:02:53.6]} 11... b4 {[%clk 0:02:54.4]} 12. Nb1 {[%clk 0:02:53.4]} 12... a5
{[%clk 0:02:44.6]} 13. Nbd2 {[%clk 0:02:51.4]} 13... O-O {[%clk 0:02:44]} 14.
Nc4 {[%clk 0:02:50.8]} 14... Nb6 {[%clk 0:02:40.9]} 15. Bf4 {[%clk 0:02:13.3]}
15... Nfd5 {[%clk 0:02:33.6]} 16. Bd2 {[%clk 0:02:09.1]} 16... Nxc4 {[%clk
0:02:23.2]} 17. dxc4 {[%clk 0:02:09.4]} 17... Nf6 {[%clk 0:02:19.1]} 18. Rad1
{[%clk 0:02:08.3]} 18... Be4 {[%clk 0:02:14.7]} 19. Qc1 {[%clk 0:02:05.3]} 19...
Qe8 {[%clk 0:02:09.1]} 20. b3 {[%clk 0:02:04.5]} 20... Ra7 {[%clk 0:01:50.6]}
21. Bf4 {[%clk 0:02:03.9]} 21... Qa8 {[%clk 0:01:50]} 22. Bd6 {[%clk 0:02:00.8]}
22... Rd8 {[%clk 0:01:37.1]} 23. Bxe7 {[%clk 0:01:53.1]} 23... Rxe7 {[%clk
0:01:38]} 24. Qf4 {[%clk 0:01:41.3]} 24... Red7 {[%clk 0:01:13.7]} 25. Rxd7
{[%clk 0:01:27.6]} 25... Rxd7 {[%clk 0:01:14]} 26. Qe5 {[%clk 0:01:01.9]} 26...
Qc8 {[%clk 0:01:00.9]} 27. Ne1 {[%clk 0:00:50.1]} 27... Bb1 {[%clk 0:00:43.1]}
28. Nf3 {[%clk 0:00:45.6]} 28... Bc2 {[%clk 0:00:38.6]} 29. Qb2 {[%clk 0:00:44]}
29... Be4 {[%clk 0:00:38.2]} 30. Ne5 {[%clk 0:00:40.8]} 30... Rd4 {[%clk
0:00:25.9]} 31. Bxe4 {[%clk 0:00:33.4]} 31... Nxe4 {[%clk 0:00:25.1]} 32. Nd3
{[%clk 0:00:32.1]} 32... Nc3 {[%clk 0:00:23.3]} 33. Re1 {[%clk 0:00:28.9]} 33...
h6 {[%clk 0:00:18.6]} 34. Qd2 {[%clk 0:00:26]} 34... Qd8 {[%clk 0:00:15]} 35.
Qe3 {[%clk 0:00:25]} 35... Qd6 {[%clk 0:00:14.3]} 36. Nf4 {[%clk 0:00:20.1]}
36... Re4 {[%clk 0:00:07.5]} 37. Qf3 {[%clk 0:00:19]} 37... Qd2 {[%clk
0:00:07.6]} 38. Kf1 {[%clk 0:00:16]} 38... Qd4 {[%clk 0:00:07.6]} 39. Nd3 {[%clk
0:00:14.6]} 39... Qd6 {[%clk 0:00:04.1]} 40. Nf4 {[%clk 0:00:12.4]} 40... Qd4
{[%clk 0:00:03.7]} 41. h4 {[%clk 0:00:09.7]} 41... Qd6 {[%clk 0:00:03.8]} 42.
Nh5 {[%clk 0:00:09.4]} 42... Rd4 {[%clk 0:00:03.8]} 43. Nf4 {[%clk 0:00:09.1]}
43... e5 {[%clk 0:00:03.6]} 44. Qa8+ {[%clk 0:00:09.2]} 44... Kh7 {[%clk
0:00:03.5]} 45. Ng2 {[%clk 0:00:09.7]} 45... e4 {[%clk 0:00:03.3]} 46. Ne3
{[%clk 0:00:08.7]} 46... Rd2 {[%clk 0:00:02.7]} 47. Qe8 {[%clk 0:00:08.4]} 47...
Qf6 {[%clk 0:00:01.6]} 48. Qb8 {[%clk 0:00:05.4]} 48... Rd4 {[%clk 0:00:02]} 49.
Qf4 {[%clk 0:00:05.7]} 49... Qxf4 {[%clk 0:00:01.9]} 50. gxf4 {[%clk 0:00:06]}
50... Na2 {[%clk 0:00:02.3]} 51. Rd1 {[%clk 0:00:02.9]} 51... Rxd1+ {[%clk
0:00:02.3]} 52. Nxd1 {[%clk 0:00:03.8]} 52... Nc1 {[%clk 0:00:02.9]} 53. Ne3
{[%clk 0:00:02.7]} 53... Nxb3 {[%clk 0:00:03.1]} 54. Nc2 {[%clk 0:00:03.6]}
54... Nd2+ {[%clk 0:00:02.9]} 55. Ke1 {[%clk 0:00:02.8]} 55... Nxc4 {[%clk
0:00:03.8]} 56. e3 {[%clk 0:00:02.3]} 56... b3 {[%clk 0:00:04.2]} 0-1

[Event "Late-Titled-Tuesday-Blitz-July-09-2024"]
[Site "Chess.com"]
[Date "2024.07.09"]
[Round "2"]
[White "falzehope0"]
[Black "LUISMIGUELOV"]
[Result "1/2-1/2"]
[WhiteElo "2463"]
[BlackElo "2192"]
[TimeControl "180+1"]
[EndTime "14:19:13 PDT"]
[Termination "Game drawn by repetition"]

1. d4 {[%clk 0:03:00.9]} 1... d5 {[%clk 0:02:59.3]} 2. e3 {[%clk 0:02:55.6]}
2... c6 {[%clk 0:02:58.5]} 3. Bd3 {[%clk 0:02:55.1]} 3... Nf6 {[%clk 0:02:40.2]}
4. f4 {[%clk 0:02:53.7]} 4... Bg4 {[%clk 0:02:38.6]} 5. Ne2 {[%clk 0:02:53.3]}
5... e6 {[%clk 0:02:37.7]} 6. Nd2 {[%clk 0:02:52.4]} 6... Bb4 {[%clk 0:02:33.1]}
7. c3 {[%clk 0:02:50.2]} 7... Be7 {[%clk 0:02:31.4]} 8. O-O {[%clk 0:02:49.8]}
8... Nbd7 {[%clk 0:02:30.5]} 9. Nf3 {[%clk 0:02:44.3]} 9... Bxf3 {[%clk
0:02:29.8]} 10. gxf3 {[%clk 0:02:41.8]} 10... g6 {[%clk 0:02:27.2]} 11. Kh1
{[%clk 0:02:41]} 11... Qc7 {[%clk 0:02:21.2]} 12. Bd2 {[%clk 0:02:38.4]} 12...
c5 {[%clk 0:02:18.6]} 13. e4 {[%clk 0:02:33.6]} 13... dxe4 {[%clk 0:02:14.3]}
14. fxe4 {[%clk 0:02:33.3]} 14... cxd4 {[%clk 0:02:14]} 15. cxd4 {[%clk
0:02:32.4]} 15... O-O {[%clk 0:02:12.4]} 16. f5 {[%clk 0:02:24.3]} 16... exf5
{[%clk 0:02:07.9]} 17. exf5 {[%clk 0:02:23.7]} 17... Nd5 {[%clk 0:02:03.9]} 18.
Ng3 {[%clk 0:02:16.4]} 18... Bf6 {[%clk 0:01:59.9]} 19. Bh6 {[%clk 0:02:10.2]}
19... Bg7 {[%clk 0:01:59.4]} 20. Qd2 {[%clk 0:02:02.6]} 20... Rae8 {[%clk
0:01:52.4]} 21. Rac1 {[%clk 0:01:59.7]} 21... Qd6 {[%clk 0:01:44.6]} 22. fxg6
{[%clk 0:01:49.9]} 22... fxg6 {[%clk 0:01:43.4]} 23. Ne4 {[%clk 0:01:37.6]}
23... Qb4 {[%clk 0:01:35.9]} 24. Bc4 {[%clk 0:01:24.1]} 24... Rxf1+ {[%clk
0:01:21.8]} 25. Bxf1 {[%clk 0:01:00.4]} 25... Qxd2 {[%clk 0:01:18.9]} 26. Nxd2
{[%clk 0:00:55.3]} 26... Bxh6 {[%clk 0:01:16.5]} 27. Bc4 {[%clk 0:00:52.5]}
27... Bxd2 {[%clk 0:01:09.8]} 28. Bxd5+ {[%clk 0:00:51.4]} 28... Kg7 {[%clk
0:01:08.9]} 29. Rc7 {[%clk 0:00:50]} 29... Re7 {[%clk 0:01:08.6]} 30. Rxb7
{[%clk 0:00:42.5]} 30... Be3 {[%clk 0:01:01.7]} 31. Bc6 {[%clk 0:00:42.1]} 31...
Kf6 {[%clk 0:01:00.8]} 32. Rxd7 {[%clk 0:00:28.6]} 32... Rxd7 {[%clk 0:01:00.5]}
33. Bxd7 {[%clk 0:00:28.8]} 33... Bxd4 {[%clk 0:01:00.8]} 34. b3 {[%clk
0:00:27.3]} 34... a5 {[%clk 0:00:59.6]} 35. Kg2 {[%clk 0:00:27.4]} 35... g5
{[%clk 0:00:59.3]} 36. Kf3 {[%clk 0:00:27]} 36... h5 {[%clk 0:00:57]} 37. h3
{[%clk 0:00:26.1]} 37... Bc5 {[%clk 0:00:48.9]} 38. Be8 {[%clk 0:00:26.1]} 38...
g4+ {[%clk 0:00:44.5]} 39. hxg4 {[%clk 0:00:24.6]} 39... hxg4+ {[%clk
0:00:44.9]} 40. Kxg4 {[%clk 0:00:24.5]} 40... Ke5 {[%clk 0:00:45]} 41. Kf3
{[%clk 0:00:22.1]} 41... Kd4 {[%clk 0:00:45.4]} 42. Bf7 {[%clk 0:00:21.7]} 42...
Kc3 {[%clk 0:00:44.4]} 43. Ke4 {[%clk 0:00:21.7]} 43... Ba3 {[%clk 0:00:42.6]}
44. Kd5 {[%clk 0:00:16.1]} 44... Kb2 {[%clk 0:00:41.7]} 45. Kc6 {[%clk
0:00:14.3]} 45... Bb4 {[%clk 0:00:39.9]} 46. a4 {[%clk 0:00:13.3]} 46... Kc3
{[%clk 0:00:38.8]} 47. Kb5 {[%clk 0:00:13.6]} 47... Kb2 {[%clk 0:00:38.4]} 48.
Bc4 {[%clk 0:00:13.7]} 48... Ka3 {[%clk 0:00:38.1]} 49. Ka6 {[%clk 0:00:13.5]}
49... Kb2 {[%clk 0:00:38.2]} 50. Kb5 {[%clk 0:00:14.1]} 50... Kc3 {[%clk
0:00:38.3]} 51. Kc6 {[%clk 0:00:14.5]} 51... Kb2 {[%clk 0:00:38.7]} 52. Kd5
{[%clk 0:00:14.9]} 52... Kc3 {[%clk 0:00:39]} 53. Ke4 {[%clk 0:00:15.2]} 53...
Kd2 {[%clk 0:00:38.7]} 54. Bd5 {[%clk 0:00:14.8]} 54... Kc3 {[%clk 0:00:38.5]}
55. Ke3 {[%clk 0:00:14.7]} 55... Kc2 {[%clk 0:00:38.2]} 56. Be6 {[%clk
0:00:13.6]} 56... Kc3 {[%clk 0:00:38.6]} 57. Ke2 {[%clk 0:00:13.8]} 57... Kc2
{[%clk 0:00:38.6]} 58. Bf7 {[%clk 0:00:14.1]} 58... Kc3 {[%clk 0:00:39]} 59. Kd1
{[%clk 0:00:14.6]} 59... Kd3 {[%clk 0:00:38.1]} 60. Kc1 {[%clk 0:00:14.7]} 60...
Kc3 {[%clk 0:00:38.3]} 61. Kb1 {[%clk 0:00:14.5]} 61... Ba3 {[%clk 0:00:37.6]}
62. Ka2 {[%clk 0:00:14.6]} 62... Bb4 {[%clk 0:00:37]} 63. Bg8 {[%clk 0:00:14.9]}
63... Kc2 {[%clk 0:00:36.8]} 64. Bf7 {[%clk 0:00:14.4]} 64... Kc1 {[%clk
0:00:36.7]} 65. Bg6 {[%clk 0:00:13.9]} 65... Kd2 {[%clk 0:00:35.9]} 66. Kb2
{[%clk 0:00:14.3]} 66... Kd1 {[%clk 0:00:35.5]} 67. Bh7 {[%clk 0:00:14]} 67...
Kd2 {[%clk 0:00:35.8]} 68. Bg6 {[%clk 0:00:13.7]} 68... Kd1 {[%clk 0:00:35.9]}
69. Bf5 {[%clk 0:00:12.1]} 69... Kd2 {[%clk 0:00:36.2]} 70. Bc2 {[%clk
0:00:11.7]} 70... Ke2 {[%clk 0:00:34.5]} 71. Kc1 {[%clk 0:00:10.8]} 71... Ke1
{[%clk 0:00:33.6]} 72. Bd3 {[%clk 0:00:08.7]} 72... Kf2 {[%clk 0:00:32.8]} 73.
Kd1 {[%clk 0:00:08.4]} 73... Ke3 {[%clk 0:00:33.2]} 74. Kc2 {[%clk 0:00:08.7]}
74... Kd4 {[%clk 0:00:32.9]} 75. Bg6 {[%clk 0:00:08.4]} 75... Ke3 {[%clk
0:00:32.2]} 76. Bd3 {[%clk 0:00:07.9]} 76... Kd4 {[%clk 0:00:31.6]} 77. Bg6
{[%clk 0:00:07.3]} 77... Ke3 {[%clk 0:00:32]} 78. Bh7 {[%clk 0:00:07.7]} 78...
Kd4 {[%clk 0:00:32.1]} 79. Bg6 {[%clk 0:00:08]} 1/2-1/2

[Event "Late-Titled-Tuesday-Blitz-July-09-2024"]
[Site "Chess.com"]
[Date "2024.07.09"]
[Round "2"]
[White "zverr1"]
[Black "luggevoila"]
[Result "0-1"]
[WhiteElo "2521"]
[BlackElo "2349"]
[TimeControl "180+1"]
[EndTime "14:19:23 PDT"]
[Termination "luggevoila won by checkmate"]

1. e4 {[%clk 0:02:15.6]} 1... e5 {[%clk 0:02:59.6]} 2. Nf3 {[%clk 0:02:15.6]}
2... Nc6 {[%clk 0:02:59.8]} 3. Bc4 {[%clk 0:02:16]} 3... Nf6 {[%clk 0:03:00.2]}
4. Ng5 {[%clk 0:02:16.2]} 4... d5 {[%clk 0:03:00]} 5. exd5 {[%clk 0:02:17.1]}
5... Na5 {[%clk 0:03:00.6]} 6. Bb5+ {[%clk 0:02:17.5]} 6... c6 {[%clk
0:03:01.3]} 7. dxc6 {[%clk 0:02:18.4]} 7... bxc6 {[%clk 0:03:02]} 8. Be2 {[%clk
0:02:19.2]} 8... h6 {[%clk 0:03:00.8]} 9. Nh3 {[%clk 0:02:19.8]} 9... g5 {[%clk
0:02:41.8]} 10. d3 {[%clk 0:02:18]} 10... g4 {[%clk 0:02:25.6]} 11. Ng1 {[%clk
0:02:16.7]} 11... Bc5 {[%clk 0:02:24.4]} 12. Nc3 {[%clk 0:02:08.1]} 12... Qb6
{[%clk 0:02:17.4]} 13. h3 {[%clk 0:01:28.1]} 13... Bxf2+ {[%clk 0:02:08.4]} 14.
Kf1 {[%clk 0:01:28]} 14... Bxg1 {[%clk 0:02:04.4]} 15. Rxg1 {[%clk 0:01:28.2]}
15... gxh3 {[%clk 0:02:04.9]} 16. Bf3 {[%clk 0:01:17.6]} 16... Rg8 {[%clk
0:02:04.2]} 17. Qe2 {[%clk 0:01:14.8]} 17... hxg2+ {[%clk 0:01:42.1]} 18. Rxg2
{[%clk 0:00:34.2]} 18... Rxg2 {[%clk 0:01:23.9]} 19. Qxe5+ {[%clk 0:00:29.3]}
19... Be6 {[%clk 0:01:23.4]} 20. Bxg2 {[%clk 0:00:27.4]} 20... Ng4 {[%clk
0:01:20.8]} 21. Qf4 {[%clk 0:00:21.1]} 21... O-O-O {[%clk 0:01:10.2]} 22. b4
{[%clk 0:00:19.5]} 22... Rd4 {[%clk 0:01:02.3]} 23. Qg3 {[%clk 0:00:13]} 23...
Rxb4 {[%clk 0:00:47.6]} 24. Ne4 {[%clk 0:00:13.5]} 24... Rb1 {[%clk 0:00:40.4]}
25. Rxb1 {[%clk 0:00:13.5]} 25... Qxb1 {[%clk 0:00:39.4]} 26. Qf4 {[%clk
0:00:12.6]} 26... Qxc2 {[%clk 0:00:30.2]} 27. Bd2 {[%clk 0:00:10.9]} 27... Qd1+
{[%clk 0:00:30]} 28. Be1 {[%clk 0:00:08.5]} 28... Qxd3+ {[%clk 0:00:30.1]} 29.
Kg1 {[%clk 0:00:08.6]} 29... Qe3+ {[%clk 0:00:29.3]} 30. Qxe3 {[%clk 0:00:07.6]}
30... Nxe3 {[%clk 0:00:30.2]} 31. Bxa5 {[%clk 0:00:07.3]} 31... Nxg2 {[%clk
0:00:28.9]} 32. Nd6+ {[%clk 0:00:01.8]} 32... Kd7 {[%clk 0:00:29.1]} 33. Nxf7
{[%clk 0:00:01.6]} 33... Bxf7 {[%clk 0:00:27.3]} 34. Kxg2 {[%clk 0:00:02.2]}
34... Bxa2 {[%clk 0:00:27.7]} 35. Kf3 {[%clk 0:00:02.3]} 35... Ke6 {[%clk
0:00:26.5]} 36. Ke4 {[%clk 0:00:02.7]} 36... c5 {[%clk 0:00:24.8]} 37. Be1
{[%clk 0:00:02.7]} 37... Bb1+ {[%clk 0:00:22.4]} 38. Ke3 {[%clk 0:00:02.5]}
38... Kd5 {[%clk 0:00:21.7]} 39. Kd2 {[%clk 0:00:02.8]} 39... Kc4 {[%clk
0:00:20.6]} 40. Kc1 {[%clk 0:00:03.3]} 40... Bf5 {[%clk 0:00:21]} 41. Kb2 {[%clk
0:00:04.2]} 41... Kd3 {[%clk 0:00:20.5]} 42. Kb3 {[%clk 0:00:03.7]} 42... c4+
{[%clk 0:00:20.8]} 43. Kb2 {[%clk 0:00:04]} 43... a6 {[%clk 0:00:20]} 44. Kc1
{[%clk 0:00:03.2]} 44... h5 {[%clk 0:00:20.3]} 45. Kb2 {[%clk 0:00:03.1]} 45...
Ke2 {[%clk 0:00:19]} 46. Bh4 {[%clk 0:00:03]} 46... Be6 {[%clk 0:00:16.5]} 47.
Kc3 {[%clk 0:00:02.6]} 47... a5 {[%clk 0:00:16.2]} 48. Bd8 {[%clk 0:00:01.6]}
48... a4 {[%clk 0:00:15.8]} 49. Kb4 {[%clk 0:00:02.4]} 49... Kd3 {[%clk
0:00:14.4]} 50. Kxa4 {[%clk 0:00:02.6]} 50... c3 {[%clk 0:00:14.9]} 51. Ka3
{[%clk 0:00:03.1]} 51... c2 {[%clk 0:00:14.5]} 52. Kb2 {[%clk 0:00:03.8]} 52...
Kd2 {[%clk 0:00:13.6]} 53. Bg5+ {[%clk 0:00:03.8]} 53... Kd1 {[%clk 0:00:13.8]}
54. Kc3 {[%clk 0:00:02.7]} 54... h4 {[%clk 0:00:14.2]} 55. Kd4 {[%clk
0:00:02.3]} 55... h3 {[%clk 0:00:14.3]} 56. Bf4 {[%clk 0:00:01.7]} 56... h2
{[%clk 0:00:13.3]} 57. Bxh2 {[%clk 0:00:02.4]} 57... c1=Q {[%clk 0:00:13.4]} 58.
Ke5 {[%clk 0:00:02.7]} 58... Qe3+ {[%clk 0:00:13]} 59. Kd6 {[%clk 0:00:02.1]}
59... Qd2+ {[%clk 0:00:13.2]} 60. Ke7 {[%clk 0:00:02.1]} 60... Qxh2 {[%clk
0:00:14.1]} 61. Kf6 {[%clk 0:00:03]} 61... Qe2 {[%clk 0:00:14.7]} 62. Ke7 {[%clk
0:00:03.9]} 62... Bf5+ {[%clk 0:00:14.5]} 63. Kd6 {[%clk 0:00:04.8]} 63... Qe6+
{[%clk 0:00:14.7]} 64. Kc5 {[%clk 0:00:04.8]} 64... Qd7 {[%clk 0:00:14.8]} 65.
Kc4 {[%clk 0:00:04.9]} 65... Qd6 {[%clk 0:00:14.6]} 66. Kc3 {[%clk 0:00:05.8]}
66... Qc5+ {[%clk 0:00:13.9]} 67. Kb3 {[%clk 0:00:05.5]} 67... Be6+ {[%clk
0:00:14.5]} 68. Ka4 {[%clk 0:00:04.6]} 68... Qc4+ {[%clk 0:00:14.8]} 69. Ka5
{[%clk 0:00:04.7]} 69... Qb3 {[%clk 0:00:14.6]} 70. Ka6 {[%clk 0:00:04.8]} 70...
Bc4+ {[%clk 0:00:14.9]} 71. Ka7 {[%clk 0:00:05.1]} 71... Kd2 {[%clk 0:00:14.2]}
72. Ka8 {[%clk 0:00:05.5]} 72... Kd3 {[%clk 0:00:14.7]} 73. Ka7 {[%clk
0:00:06.4]} 73... Kd4 {[%clk 0:00:15.6]} 74. Ka8 {[%clk 0:00:07.3]} 74... Kd5
{[%clk 0:00:16.2]} 75. Ka7 {[%clk 0:00:08.2]} 75... Kc6 {[%clk 0:00:16.6]} 76.
Ka8 {[%clk 0:00:09.1]} 76... Qb7# {[%clk 0:00:16.6]} 0-1